Cogmind - Beta 10.2 @@@ ROGUE MODE // 2020.11.15 @ 14:39:46 // Halloween2020/ForbiddenLore Player: Moshi Result: Destroyed by as-40351 with Assembled Rifle Performance ------------- Evolutions (0) 0 Regions Visited (2) 400 Robots Destroyed (4) 20 Value Destroyed (46) 46 Prototype IDs (0) 0 Alien Tech Used (0) 0 Bonus (0) 0 TOTAL SCORE: 466 Bonus ------- None Cogmind --------- Core Integrity 0/250 Matter 279/300 Energy 250/250 System Corruption 0% Temperature Cool (0) Movement Core (200) Ox3 Location -10/Mines Parts ------- > --- POWER (1) -------- Ion Engine > --- PROPULSION (2) --- (None) > --- UTILITY (2) ------ Small Storage Unit Signal Interpreter > --- WEAPON (2) ------- Light Assault Rifle > --- INVENTORY (6) ---- Medium Matter Pod (2) Peak State ------------ > --- POWER ------------ Light Ion Engine > --- PROPULSION ------- Aluminum Leg Aluminum Leg > --- UTILITY ---------- Small Storage Unit Signal Interpreter > --- WEAPON ----------- EM Pulse Gun Assault Rifle > --- INVENTORY -------- Ion Engine Assault Rifle Light Assault Rifle [Rating: 7] Favorites ----------- Power Light Ion Engine Engine Light Ion Engine Propulsion Aluminum Leg Leg Aluminum Leg Utility Small Storage Unit Storage Small Storage Unit Processor Signal Interpreter Weapon Assault Rifle Energy Gun EM Pulse Gun Ballistic Gun Assault Rifle Build | -11 -10 -10 ------- Run | Scr Mat Min Slots Evolved . | . . . Power . | . . . Propulsion . | . . . Utility . | . . . Weapon . | . . . Parts Attached 10 | 6 1 3 Power 2 | 1 . 1 Engine 2 | 1 . 1 Core . | . . . Reactor . | . . . Propulsion 2 | 2 . . Treads . | . . . Leg 2 | 2 . . Wheel . | . . . Hover . | . . . Flight . | . . . Utility 2 | 1 1 . Device . | . . . Storage 1 | 1 . . Processor 1 | . 1 . Hackware . | . . . Protection . | . . . Artifact . | . . . Weapon 4 | 2 . 2 Energy Gun 1 | 1 . . Energy Cannon . | . . . Ballistic Gun 3 | 1 . 2 Ballistic Cannon . | . . . Launcher . | . . . Special Weapon . | . . . Impact Weapon . | . . . Slashing Weapon . | . . . Piercing Weapon . | . . . Special Melee Weapon . | . . . Unidentified Prototypes . | . . . Parts Lost 6 | . . 6 Power 1 | . . 1 Propulsion 2 | . . 2 Utility . | . . . Weapon 3 | . . 3 Highest Loss Streak 6 | . . 6 Average Slot Usage (%) 88 | . 88 88 Engine 14 | . 14 14 Leg 24 | . 28 21 Storage 14 | . 14 14 Processor 8 | . 3 14 Energy Gun 11 | . 14 9 Ballistic Gun 14 | . 14 14 Naked Turns . | . . . Heaviest Build 13 | 11 11 13 Greatest Support 20 | 20 20 20 Greatest Overweight (x) 3 | 1 . 3 Average Overweight (x) . | . . . Largest Inventory Capacity 6 | 6 6 6 Average Capacity 5 | 5 6 6 Most Carried 4 | 2 4 4 Average Carried 2 | 1 2 3 Final Capacity 6 | 6 6 6 Final Carried 4 | 2 4 1 Class Distribution -------------------- 100% | Mutant Dominant Class ---------------- Mutant | -10/Materials Mutant | -10/Mines Resources | -11 -10 -10 ----------- Run | Scr Mat Min Matter Collected 305 | 230 58 17 Remotely . | . . . Salvage Created 103 | . 70 33 Parts 7 | . 7 . Haulers Intercepted . | . . . Recyclers Shooed 1 | . 1 . Parts Field Recycled . | . . . Retrieved Matter . | . . . Parts Self-Destructed . | . . . Prevented . | . . . Kills | -11 -10 -10 ------- Run | Scr Mat Min Combat Hostiles Destroyed 5 | . 3 2 Guns 5 | . 3 2 Classes Destroyed 3 | . 2 1 Watcher 1 | . 1 . Swarmer 3 | . 3 . Assembled 2 | . . 2 Best Kill Streak 3 | . 3 1 Combat Bots Only 3 | . 3 1 Max Kills in Single Turn 1 | . 1 1 Gunslinging . | . . . Exploded . | . . . Melee . | . . . Uniques/NPCs Destroyed . | . . . Combat | -11 -10 -10 -------- Run | Scr Mat Min Damage Taken 921 | . 77 844 Core 258 | . 10 248 Absorbed by Shields . | . . . Core Remaining (%) 100 | 100 . . Volleys Fired 20 | . 6 14 Largest 2 | . 2 2 Hottest 60 | . 60 60 Shots Fired 31 | . 12 19 Gun 31 | . 12 19 Cannon . | . . . Launcher . | . . . Special . | . . . Kinetic 24 | . 6 18 Thermal . | . . . Explosive . | . . . Electromagnetic 7 | . 6 1 Robot Hit Streak 4 | . 3 4 Robot Miss Streak 3 | . 2 3 Penetration Max . | . . . Secondary Targets 1 | . 1 . Max Gunslinging Chain 1 | . 1 . Shots Hit Robots 15 | . 4 11 Core Hits 12 | . 5 7 Critical Hits . | . . . Critical Kills . | . . . Critical Parts Destroyed . | . . . Melee Attacks . | . . . Impact . | . . . Slashing . | . . . Piercing . | . . . Sneak Attacks . | . . . Combat Hostiles . | . . . Follow-up Attacks . | . . . Damage Inflicted 198 | . 78 120 Guns 198 | . 78 120 Cannons . | . . . Explosions . | . . . Melee . | . . . Ramming . | . . . Kinetic 124 | . 14 110 Thermal . | . . . Explosive . | . . . Electromagnetic 74 | . 64 10 Impact . | . . . Slashing . | . . . Piercing . | . . . Highest Corruption . | . . . Average Corruption . | . . . Corruption Purged . | . . . Overload Shots . | . . . Overflow Damage . | . . . Projectiles . | . . . Explosions . | . . . Melee . | . . . Knockbacks . | . . . Impact . | . . . Kinetic . | . . . Secondary . | . . . Self-Inflicted Damage . | . . . Shots . | . . . Rammed . | . . . Targets Rammed . | . . . Kicked . | . . . Crushed . | . . . Highest Temperature 32 | . . 32 Average Temperature 19 | . . 19 Received Heat Transfer 100 | . . 100 Siege Activations . | . . . Robots Corrupted . | . . . Combat Hostiles . | . . . Parts Fried . | . . . Impact Corruptions . | . . . Robots Melted . | . . . Combat Hostiles . | . . . Parts Melted . | . . . Heat Transferred . | . . . Parts Sabotaged . | . . . Parts Stolen . | . . . Parts Stripped . | . . . Power Chain Reactions . | . . . Missiles Intercepted . | . . . Alert | -11 -10 -10 ------- Run | Scr Mat Min Peak Influence 110 | . 110 42 Initial 42 | . . 42 Average 35 | . 53 29 Maximum Alert Level . | . . . Low Security (%) 100 | 100 100 100 Level 1 . | . . . Level 2 . | . . . Level 3 . | . . . Level 4 . | . . . Level 5 . | . . . High Security . | . . . Max Security . | . . . Squads Dispatched 1 | . 1 . Investigation 1 | . 1 . Extermination . | . . . Reinforcement . | . . . Assault . | . . . Garrison . | . . . Intercept . | . . . Construction Impeded . | . . . Haulers Reinforced . | . . . Stealth | -11 -10 -10 --------- Run | Scr Mat Min Distress Signals 1 | . 1 . Communications Jammed . | . . . Distress Signals . | . . . Times Spotted 21 | . 6 15 Peak Tracking Total 15 | . 4 15 Tactical Retreats 2 | . . 2 Traps | -11 -10 -10 ------- Run | Scr Mat Min Traps Triggered . | . . . Indirectly . | . . . Trap Hack Attempts . | . . . Triggered . | . . . Disarmed . | . . . Reprogrammed . | . . . Reused . | . . . Traps Extracted . | . . . Installed . | . . . Triggered . | . . . Machines | -11 -10 -10 ---------- Run | Scr Mat Min Machines Disabled . | . . . Max in Single Turn . | . . . Machines Sabotaged . | . . . Garrisons Compromised . | . . . Overloaded Fab Kills . | . . . Fab Network Shutdowns . | . . . Hacking | -11 -10 -10 --------- Run | Scr Mat Min Machines Accessed 3 | . 3 . Terminals 3 | . 3 . Fabricators . | . . . Repair Stations . | . . . Recycling Units . | . . . Scanalyzers . | . . . Garrison Access . | . . . Total Hacks 4 | . 4 . Successful 2 | . 2 . Failed 2 | . 2 . Catastrophic . | . . . Database Lockouts . | . . . Manual . | . . . Terminals 4 | . 4 . Fabricators . | . . . Repair Stations . | . . . Recycling Units . | . . . Scanalyzers . | . . . Garrison Access . | . . . Terminal Hacks 2 | . 2 . Dispatch Records 1 | . 1 . Maintenance Status 1 | . 1 . Fabricator Hacks . | . . . Repair Station Hacks . | . . . Recycling Unit Hacks . | . . . Scanalyzer . | . . . Garrison Access Hacks . | . . . Unauthorized Hacks . | . . . Terminals . | . . . Fabricators . | . . . Repair Stations . | . . . Recycling Units . | . . . Scanalyzers . | . . . Garrison Access . | . . . Data Cores Recovered . | . . . Used . | . . . Hacking Detections 2 | . 2 . Full Trace Events 1 | . 1 . Feedback Events . | . . . Feedback Blocked . | . . . Robot Schematics Acquired . | . . . Robots Built . | . . . Matter . | . . . Time . | . . . Total Robot Build Rating . | . . . Part Schematics Acquired . | . . . Parts Built . | . . . Matter . | . . . Time . | . . . Total Part Build Rating . | . . . Parts Repaired . | . . . Time . | . . . Parts Recycled . | . . . Recycled Matter . | . . . Retrieved Matter . | . . . Retrieved Components . | . . . Parts Scanalyzed . | . . . Part Schematics Acquired . | . . . Parts Damaged . | . . . Bothacking | -11 -10 -10 ------------ Run | Scr Mat Min Used RIF Installer . | . . . Robots Hacked . | . . . Non-combat . | . . . Combat . | . . . Robot Hacks Applied . | . . . Relay Couplers Released . | . . . Robots Rewired . | . . . Allies Hacked . | . . . Hacks Repelled . | . . . Allies | -11 -10 -10 -------- Run | Scr Mat Min Total Allies . | . . . Largest Group . | . . . Highest-Rated Group . | . . . Highest-Rated Ally . | . . . Total Orders . | . . . Ally Attacks . | . . . Total Damage . | . . . Kills . | . . . Allies Corrupted . | . . . Allies Melted . | . . . Intel | -11 -10 -10 ------- Run | Scr Mat Min Robot Analysis Total . | . . . Derelict Logs Recovered . | . . . Drone Launches . | . . . Drone Recoveries . | . . . Exploration | -11 -10 -10 ------------- Run | Scr Mat Min Turns Passed 386 | 56 161 169 Spaces Moved 256 | 36 114 106 Core 18 | 3 . 15 Treads . | . . . Legs 238 | 33 114 91 Wheels . | . . . Hover . | . . . Flight . | . . . Fastest Speed 50 | 50 120 120 Average Speed 122 | 120 120 125 Slowest Speed 200 | 150 120 200 Overloaded Moves . | . . . Propulsion Burnouts . | . . . Robots Hopped . | . . . Cave-ins Triggered . | . . . Exploration Rate (%) 21 | 3 24 38 Regions Visited 2 Branch Regions 1 Pre-discovered Areas . | . . . Known Exits Taken 1 | . 1 . Unknown Exits Taken 1 | 1 . . Scrap Searched . | . . . Spaces Dug . | . . . Terrain Destroyed . | . . . Melee . | . . . Projectile . | . . . AOE . | . . . Terrain Rammed . | . . . Walls Destroyed . | . . . Machines Disabled . | . . . Actions | -11 -10 -10 --------- Run | Scr Mat Min Total 295 | 45 125 125 Wait 7 | 2 3 2 Move 254 | 35 113 106 Hop . | . . . Pick Up 4 | 2 2 . Fast Attach 7 | 6 1 . Attach 3 | . . 3 Detach . | . . . Swap . | . . . Drop . | . . . Fire 20 | . 6 14 Melee . | . . . Ram . | . . . Kick . | . . . Crush . | . . . Escape Stasis . | . . . Rewire . | . . . Trap . | . . . Miscellaneous . | . . . Route ------- -11/Scrapyard -10/Materials -10/Mines (discovered 1 exit: [*Mat]) History --------- Turn | Location | Event 25 | -11/Scrapyard | Discovered new exit (range 16) 57 | -11/Scrapyard | Entered Materials 201 | -10/Materials | Discovered new exit (range 7) 208 | -10/Materials | Identified exit to Mines 218 | -10/Materials | Entered Mines 307 | -10/Mines | Assembled infested the area 307 | -10/Mines | Build established: Mutant 312 | -10/Mines | Assisted by a Guerilla fighting off Assembled 343 | -10/Mines | Discovered new exit (range 15) 346 | -10/Mines | Core integrity fell below 50% 352 | -10/Mines | Core integrity fell below 20% 378 | -10/Mines | Lost 6 parts (1p2n3w) 387 | -10/Mines | Destroyed by as-40351 with Assembled Rifle Last Messages --------------- 00340_ Lgt. Ion Engine destroyed. 00341_ U-05 Engineer lays Concrete. 00342_ Critical hit. 00342_ Aluminum Leg destroyed. 00342_ HV Slug penetrates Wall. 00342_ U-05 Engineer lays Concrete. 00342_ U-05 Engineer destroyed. 00343_ EXIT=FOUND 00344_ Assault Rifle destroyed. 00345_ The unstable cave ceiling collapses. 00345_ Acquired 17 matter. 00345_ Aluminum Leg destroyed. 00347_ Assault Rifle destroyed. 00348_ K-01 Serf collects debris. 00349_ The unstable cave ceiling collapses. 00349_ HV Slug penetrates as-81284. 00349_ as-81284 suffers critical hit. 00349_ as-45335 suffers critical hit. 00349_ as-45335 destroyed. 00375_ as-23735 destroyed. Map ----- +----------------------------------------------------+ | #??????? ??????????????????????????????????? | | #??????? ???????????????????????????????????? | | #??????? ???????????????????????????????????? | | ######?? ????????????????????????????????????? | | ## #### #????????????????????????????????????? | | #????????????????????????????????????? | | """ #### #????????????????????????????????????? | | """ #### #????????????????????????????????????? | | """ #????????????????????????????????????? | | #### #????????????????????????????????????? | | ##?## ##???????????????????????????????????? | | ###??# ##??????????????????????????????????? | | ##????# ##?????????????????????????????????? | | ##?????## #?????????????????????????????????? | | ##??????## #?????????????????????????????????? | | ?#####?## #?????????????????????????????????? | | ## ### #?????????????????????????????????? | | # #?????????????????????????????????? | | ## #?????????????????????????????????? | | ?## ### #????????????????????????????????? | | ??######?## ?????????????????????????????? | | ??????????? ####????????????????????????????? | | ??????????? #???????????????????????????????? | | ???????????# ##???????????????????????????????? | | ????????????# ##???######## #??????????????????? | | ?????????????###????# a% @ #??????????????????? | | ????????????????????# #########??????????????????? | | ????????????????????# #??????????????????????????? | | ????????????????????# #??????????????????????????? | | ?????????????????#### #??????????????????????????? | | ?????????????????# #??????????????????????????? | | ??????????????#### ###??????????????????????????? | | ??????????????# #????????????????????????????? | | ??????????????# # ###????????????????????????????? | | ###??????####?# # #??????????????????????????????? | | ##?##### ###|! #??????????????????????????????? | | ### # ! ! #####??????????????????????????? | | #### * #??????????????????????????? | | # #?????????????????????????? | | =* #?????????????????????????? | | ## = %%! ??????????????????????? | | #### ##%%]!!